fUSD/lending_fUSD_20250206
["ID","MTS","AMOUNT","RATE_DAILY","PERIOD"]
[351952827,1738859465713,-820.08,0.00019589,3]
[351952828,1738859465723,-744.33,0.00019589,3]
[351952829,1738859465732,-1200.0,0.00019589,5]
[351952830,1738859465742,-1038.55,0.00019589,3]
[351952831,1738859465751,-500.0,0.00019589,3]
[351952832,1738859465761,-997.71,0.00019589,3]
[351952833,1738859465770,-500.0,0.00019589,3]
[351952834,1738859465780,-500.0,0.00019589,3]
[351952835,1738859465789,-500.0,0.00019589,3]
[351952836,1738859465799,-920.08,0.00019589,3]
[351952837,1738859465809,-500.0,0.00019589,3]
[351952838,1738859465819,-546.8,0.00019589,3]
[351952839,1738859465828,-802.1,0.00019589,3]
[351952840,1738859465838,-500.0,0.00019589,3]
[351952841,1738859465851,-829.39,0.00019589,3]
[351952842,1738859465861,-1062.66,0.00019589,3]
[351952843,1738859465871,-150.0,0.00019589,2]
[351952844,1738859465880,-500.0,0.00019589,3]
[351952845,1738859465890,-500.0,0.00019589,3]
[351952846,1738859465899,-500.0,0.00019589,3]
[351952847,1738859465909,-224.21493399,0.00019589,3]
[351952848,1738859465919,-781.71,0.00019589,3]
[351952849,1738859465928,-733.94,0.00019589,3]
[351952850,1738859465938,-500.0,0.00019589,3]
[351952851,1738859465948,-977.61,0.00019589,3]
[351952852,1738859465958,-921.15,0.00019589,3]
[351952853,1738859465967,-1215.45,0.00019589,3]
[351952854,1738859465976,-694.69,0.00019589,3]
[351952855,1738859465985,-500.0,0.00019589,3]
[351952856,1738859465994,-500.0,0.00019589,3]
[351952857,1738859466003,-185.92541747,0.00019589,3]
[351952858,1738859466012,-914.14,0.00019589,3]
[351952859,1738859466025,-500.0,0.00019589,3]
[351952860,1738859466036,-500.0,0.00019589,3]
[351952861,1738859466046,-500.0,0.00019589,3]
[351952862,1738859466055,-861.82,0.00019589,3]
[351952863,1738859466064,-500.0,0.00019589,3]
[351952864,1738859466073,-500.0,0.00019589,3]
[351952865,1738859466083,-500.0,0.00019589,3]
[351952866,1738859466092,-500.0,0.00019589,3]
[351952867,1738859466105,-835.12,0.00019589,3]
[351952868,1738859466114,-500.0,0.00019589,3]
[351952869,1738859466124,-664.56,0.00019589,3]
[351952870,1738859466133,-500.0,0.00019589,3]
[351952871,1738859466143,-627.63,0.00019589,3]
[351952872,1738859466153,-500.0,0.00019589,3]
[351952873,1738859466163,-500.0,0.00019589,3]
[351952874,1738859466172,-636.89,0.00019589,3]
[351952875,1738859466182,-500.0,0.00019589,3]
[351952876,1738859466191,-295.32418714,0.00019589,3]
[351952877,1738859466200,-746.71,0.00019589,3]
[351952878,1738859466210,-1881.95,0.00019589,3]
[351952879,1738859466219,-500.0,0.00019589,3]
[351952880,1738859466228,-500.0,0.00019589,3]
[351952881,1738859466238,-728.45,0.00019589,3]
[351952882,1738859466247,-3100.99,0.00019589,3]
[351952883,1738859466256,-500.0,0.00019589,3]
[351952884,1738859466266,-500.0,0.00019589,3]
[351952885,1738859466275,-1266.32,0.00019589,3]
[351952886,1738859466284,-501.42,0.00019589,3]
[351952887,1738859466294,-976.76,0.00019589,3]
[351952888,1738859466303,-815.33,0.00019589,3]
[351952889,1738859466313,-612.55,0.00019589,3]
[351952890,1738859466323,-612.46743221,0.00019589,3]
[351952891,1738859466333,-1251.86,0.00019589,3]
[351952892,1738859466342,-805.52,0.00019589,3]
[351952893,1738859466355,-500.0,0.00019589,3]
[351952894,1738859466365,-1527.02,0.00019589,3]
[351952895,1738859466374,-500.0,0.00019589,3]
[351952896,1738859466383,-500.0,0.00019589,3]
[351952897,1738859466393,-1214.58,0.00019589,3]
[351952898,1738859466402,-500.0,0.00019589,3]
[351952899,1738859466411,-500.0,0.00019589,3]
[351952900,1738859466421,-725.08,0.00019589,3]
[351952901,1738859466430,-758.66,0.00019589,3]
[351952902,1738859466439,-939.65,0.00019589,3]
[351952903,1738859466448,-633.87,0.00019589,3]
[351952904,1738859466458,-528.24,0.00019589,3]
[351952905,1738859466467,-500.0,0.00019589,3]
[351952906,1738859466477,-704.31,0.00019589,3]
[351952907,1738859466486,-1362.1,0.00019589,3]
[351952908,1738859466495,-500.0,0.00019589,3]
[351952909,1738859466505,-601.9,0.00019589,3]
[351952910,1738859466516,-961.89,0.00019589,3]
[351952911,1738859466526,-1055.11,0.00019589,3]
[351952912,1738859466535,-1033.09,0.00019589,3]
[351952913,1738859466546,-500.0,0.00019589,3]
[351952914,1738859466555,-896.21,0.00019589,3]
[351952915,1738859466565,-500.0,0.00019589,3]
[351952916,1738859466574,-848.6,0.00019589,3]
[351952917,1738859466584,-957.85,0.00019589,3]
[351952918,1738859466595,-500.0,0.00019589,3]
[351952919,1738859466605,-1133.7,0.00019589,3]
[351952920,1738859466614,-500.0,0.00019589,3]
[351952921,1738859466781,-500.0,0.00019589,3]
[351952922,1738859466791,-500.0,0.00019589,3]
[351952923,1738859466801,-655.65,0.00019589,3]
[351952924,1738859466810,-573.81149476,0.00019589,3]
[351952925,1738859466820,-1198.99,0.00019589,3]
[351952926,1738859466830,-500.0,0.00019589,3]
[351952927,1738859466839,-1095.89,0.00019589,3]
[351952928,1738859466851,-500.0,0.00019589,3]
[351952929,1738859466860,-733.0,0.00019589,3]
[351952930,1738859466870,-568.21,0.00019589,3]
[351952931,1738859466880,-880.56,0.00019589,3]
[351952932,1738859466890,-500.0,0.00019589,3]
[351952933,1738859466900,-669.52,0.00019589,3]
[351952934,1738859466910,-500.0,0.00019589,3]
[351952935,1738859466919,-1271.47,0.00019589,3]
[351952936,1738859466929,-500.0,0.00019589,3]
[351952937,1738859466938,-621.18,0.00019589,3]
[351952938,1738859466948,-500.0,0.00019589,3]
[351952939,1738859466959,-500.0,0.00019589,3]
[351952940,1738859466969,-500.0,0.00019589,3]
[351952941,1738859466979,-500.0,0.00019589,3]
[351952942,1738859466990,-500.0,0.00019589,3]
[351952943,1738859466999,-500.0,0.00019589,3]
[351952944,1738859467010,-562.43,0.00019589,3]
[351952945,1738859467020,-1161.95,0.00019589,3]
[351952946,1738859467030,-1428.32,0.00019589,3]
[351952947,1738859467039,-786.81,0.00019589,3]
[351952948,1738859467050,-1157.3,0.00019589,3]
[351952949,1738859467060,-813.39,0.00019589,3]
[351952950,1738859467070,-888.81,0.00019589,3]
[351952951,1738859467079,-500.0,0.00019589,3]
[351952952,1738859467090,-511.12985025,0.00019589,3]
[351952953,1738859467101,-500.0,0.00019589,3]
[351952954,1738859467111,-629.32,0.00019589,3]
[351952955,1738859467121,-500.0,0.00019589,3]
[351952956,1738859467130,-500.0,0.00019589,3]
[351952957,1738859467139,-776.83,0.00019589,3]
[351952958,1738859467150,-1126.26,0.00019589,3]
[351952959,1738859467159,-895.6,0.00019589,3]
[351952960,1738859467169,-665.98,0.00019589,3]
[351952961,1738859467179,-500.0,0.00019589,3]
[351952962,1738859467188,-500.0,0.00019589,3]
[351952963,1738859467198,-547.66,0.00019589,3]
[351952964,1738859467208,-500.0,0.00019589,3]
[351952965,1738859467217,-1396.45,0.00019589,3]
[351952966,1738859467227,-983.22,0.00019589,3]
[351952967,1738859467236,-704.72,0.00019589,3]
[351952968,1738859467246,-620.79,0.00019589,3]
[351952969,1738859467255,-500.0,0.00019589,3]
[351952970,1738859467265,-676.27,0.00019589,3]
[351952971,1738859467275,-1850.4,0.00019589,2]
[351952972,1738859467284,-500.0,0.00019589,3]
[351952973,1738859467294,-1488.93,0.00019589,3]
[351952974,1738859467303,-1095.19,0.00019589,3]
[351952975,1738859467313,-816.62,0.00019589,3]
[351952976,1738859467323,-500.0,0.00019589,3]
[351952977,1738859467332,-1483.16,0.00019589,3]
[351952978,1738859467341,-875.74,0.00019589,3]
[351952979,1738859467355,-1025.41,0.00019589,3]
[351952980,1738859467364,-1421.56,0.00019589,3]
[351952981,1738859467374,-1334.05,0.00019589,3]
[351952982,1738859467383,-974.43,0.00019589,3]
[351952983,1738859467393,-1490.28,0.00019589,3]
[351952984,1738859467403,-684.19,0.00019589,3]
[351952985,1738859467412,-500.0,0.00019589,3]
[351952986,1738859467422,-500.0,0.00019589,3]
[351952987,1738859467434,-500.0,0.00019589,3]
[351952988,1738859467443,-3022.85,0.00019589,3]
[351952989,1738859467452,-581.98,0.00019589,3]
[351952990,1738859467463,-1090.5,0.00019589,3]
[351952991,1738859467473,-1515.87,0.00019589,3]
[351952992,1738859467484,-500.0,0.00019589,3]
[351952993,1738859467495,-1234.05,0.00019589,3]
[351952994,1738859467509,-1764.95,0.00019589,3]
[351952995,1738859467519,-668.56,0.00019589,3]
[351952996,1738859467528,-816.76,0.00019589,3]
[351952997,1738859467538,-964.86,0.00019589,3]
[351952998,1738859467548,-978.7,0.00019589,3]
[351952999,1738859467558,-1674.88,0.00019589,3]
[351953000,1738859467567,-597.77911194,0.00019589,3]
[351953001,1738859467577,-1374.73,0.00019589,3]
[351953002,1738859467586,-500.0,0.00019589,3]
[351953003,1738859467597,-808.77,0.00019589,3]
[351953004,1738859467607,-2484.78,0.00019589,3]
[351953005,1738859467616,-690.31,0.00019589,3]
[351953006,1738859467626,-1252.47,0.00019589,3]
[351953007,1738859467635,-1520.16,0.00019589,3]
[351953008,1738859467644,-676.95,0.00019589,3]
[351953009,1738859467653,-574.55,0.00019589,3]
[351953010,1738859467662,-508.56,0.00019589,3]
[351953011,1738859467671,-1654.65,0.00019589,3]
[351953012,1738859467681,-1889.68,0.00019589,3]
[351953013,1738859467690,-500.0,0.00019589,3]
[351953014,1738859467700,-1938.72,0.00019589,3]
[351953015,1738859467709,-500.0,0.00019589,3]
[351953016,1738859467719,-1436.62,0.00019589,3]
[351953017,1738859467729,-932.56,0.00019589,3]
[351953018,1738859467739,-500.0,0.00019589,3]
[351953019,1738859467749,-2075.99,0.00019589,3]
[351953020,1738859467758,-544.05,0.00019589,3]
[351953021,1738859467768,-890.11,0.00019589,3]
[351953022,1738859467778,-563.32,0.00019589,3]
[351953023,1738859467788,-500.0,0.00019589,3]
[351953024,1738859467797,-812.99,0.00019589,3]
[351953025,1738859467807,-1298.3,0.00019589,3]
[351953026,1738859467817,-500.0,0.00019589,3]
[351953027,1738859467826,-1206.59,0.00019589,3]
[351953028,1738859467836,-500.0,0.00019589,3]
[351953029,1738859467848,-500.0,0.00019589,3]
[351953030,1738859467858,-782.47,0.00019589,3]
[351953031,1738859467867,-2159.33,0.00019589,3]
[351953032,1738859467877,-1257.05,0.00019589,3]
[351953033,1738859467887,-1474.21,0.00019589,3]
[351953034,1738859467897,-1385.34,0.00019589,3]
[351953035,1738859467907,-1048.46,0.00019589,3]
[351953036,1738859467916,-681.94,0.00019589,3]
[351953037,1738859467927,-723.68,0.00019589,3]
[351953038,1738859467937,-805.81,0.00019589,3]
[351953039,1738859467947,-500.0,0.00019589,3]
[351953040,1738859467958,-500.0,0.00019589,3]
[351953041,1738859467968,-2189.95,0.00019589,3]
[351953042,1738859467980,-1118.0,0.00019589,3]
[351953043,1738859467991,-500.0,0.00019589,3]
[351953044,1738859468000,-761.44,0.00019589,3]
[351953045,1738859468010,-2281.39,0.00019589,3]
[351953046,1738859468021,-794.79,0.00019589,3]
[351953047,1738859468031,-1933.42,0.00019589,3]
[351953048,1738859468041,-1564.18,0.00019589,3]
[351953049,1738859468051,-1740.16,0.00019589,3]
[351953050,1738859468060,-1608.25,0.00019589,3]
[351953051,1738859468070,-500.0,0.00019589,3]
[351953052,1738859468080,-595.7,0.00019589,3]
[351953053,1738859468090,-500.0,0.00019589,3]
[351953054,1738859468102,-500.0,0.00019589,3]
[351953055,1738859468111,-2013.32,0.00019589,3]
[351953056,1738859468121,-1838.73,0.00019589,3]
[351953057,1738859468131,-814.17,0.00019589,3]
[351953058,1738859468140,-1594.58,0.00019589,3]
[351953059,1738859468150,-1250.99,0.00019589,3]
[351953060,1738859468159,-1472.26,0.00019589,3]
[351953061,1738859468169,-504.52,0.00019589,3]
[351953062,1738859468179,-500.0,0.00019589,3]
[351953063,1738859468191,-2036.39,0.00019589,3]
[351953064,1738859468201,-1082.34,0.00019589,3]
[351953065,1738859468211,-1794.21,0.00019589,3]
[351953066,1738859468221,-2212.48,0.00019589,3]
[351953067,1738859468230,-1000.05,0.00019589,3]
[351953068,1738859468239,-500.0,0.00019589,3]
[351953069,1738859468249,-1982.27,0.00019589,3]
[351953070,1738859468258,-547.36,0.00019589,3]
[351953071,1738859468267,-500.0,0.00019589,3]
[351953072,1738859468276,-2169.81,0.00019589,3]
[351953073,1738859468286,-500.0,0.00019589,3]
[351953074,1738859468295,-3676.92,0.00019589,3]
[351953075,1738859468304,-1987.59,0.00019589,3]
[351953076,1738859468314,-1418.01,0.00019589,3]
[351953077,1738859468323,-3759.67,0.00019589,3]
[351953078,1738859468332,-1209.77,0.00019589,3]
[351953079,1738859468342,-1325.12,0.00019589,3]
[351953080,1738859468354,-1003.89,0.00019589,3]
[351953081,1738859468363,-1867.22,0.00019589,3]
[351953082,1738859468372,-1707.3,0.00019589,3]
[351953083,1738859468381,-737.66,0.00019589,3]
[351953084,1738859468391,-1714.32,0.00019589,3]
[351953085,1738859468400,-2211.47,0.00019589,3]
[351953086,1738859468409,-2383.64,0.00019589,3]
[351953087,1738859468419,-3867.71,0.00019589,3]
[351953088,1738859468428,-500.0,0.00019589,3]
[351953089,1738859468438,-910.29,0.00019589,3]
[351953090,1738859468447,-2979.92,0.00019589,3]
[351953091,1738859468456,-1813.13,0.00019589,3]
[351953092,1738859468465,-1520.95,0.00019589,3]
[351953093,1738859468475,-500.0,0.00019589,3]
[351953094,1738859468485,-1070.88,0.00019589,3]
[351953095,1738859468495,-944.96,0.00019589,3]
[351953096,1738859468504,-2341.93,0.00019589,3]
[351953097,1738859468516,-1001.29,0.00019589,3]
[351953098,1738859468526,-500.0,0.00019589,3]
[351953099,1738859468535,-500.0,0.00019589,3]
[351953100,1738859468546,-7025.56,0.00019589,3]
[351953101,1738859468555,-1580.19,0.00019589,3]
[351953102,1738859468565,-3800.02,0.00019589,3]
[351953103,1738859468574,-500.0,0.00019589,3]
[351953104,1738859468585,-557.56,0.00019589,3]
[351953105,1738859468596,-2114.38,0.00019589,3]
[351953106,1738859468605,-537.35,0.00019589,3]
[351953107,1738859468615,-522.08737286,0.00019589,3]
[351953108,1738859468624,-1278.48,0.00019589,3]
[351953109,1738859468633,-3151.03,0.00019589,3]
[351953110,1738859468643,-2047.65,0.00019589,3]
[351953111,1738859468652,-500.0,0.00019589,3]
[351953112,1738859468661,-500.0,0.00019589,3]
[351953113,1738859468670,-1608.0,0.00019589,3]
[351953114,1738859468680,-500.0,0.00019589,3]
[351953115,1738859468690,-910.08,0.00019589,3]
[351953116,1738859468700,-2786.69,0.00019589,3]
[351953117,1738859468710,-3611.73,0.00019589,3]
[351953118,1738859468720,-2127.85,0.00019589,3]
[351953119,1738859468729,-1812.48,0.00019589,3]
[351953120,1738859468740,-500.0,0.00019589,3]
[351953121,1738859468750,-3376.65,0.00019589,3]
[351953122,1738859468760,-2087.88,0.00019589,3]
[351953123,1738859468771,-3136.7,0.00019589,3]
[351953124,1738859468780,-584.99,0.00019589,3]
[351953125,1738859468790,-2643.85,0.00019589,3]
[351953126,1738859468800,-500.0,0.00019589,3]
[351953127,1738859468810,-1531.86,0.00019589,3]
[351953128,1738859468819,-500.0,0.00019589,3]
[351953129,1738859468829,-500.0,0.00019589,3]
[351953130,1738859468839,-771.7,0.00019589,3]
[351953131,1738859468850,-1119.67,0.00019589,3]
[351953132,1738859468859,-1997.29,0.00019589,3]
[351953133,1738859468869,-801.59,0.00019589,3]
[351953134,1738859468879,-500.0,0.00019589,3]
[351953135,1738859468888,-509.43,0.00019589,3]
[351953136,1738859468899,-4454.3,0.00019589,3]
[351953137,1738859468908,-2508.19,0.00019589,3]
[351953138,1738859468918,-921.93,0.00019589,3]
[351953139,1738859468928,-2252.27,0.00019589,3]
[351953140,1738859468939,-1506.19,0.00019589,3]
[351953141,1738859468948,-500.0,0.00019589,3]
[351953142,1738859468957,-549.57,0.00019589,3]
[351953143,1738859468967,-3741.69,0.00019589,3]
[351953144,1738859468976,-604.81,0.00019589,3]
[351953145,1738859468985,-651.33,0.00019589,3]
[351953146,1738859468994,-1470.46,0.00019589,3]
[351953147,1738859469003,-739.64,0.00019589,3]
[351953148,1738859469012,-2385.66,0.00019589,3]
[351953149,1738859469021,-1808.68,0.00019589,3]
[351953150,1738859469031,-2039.7,0.00019589,3]
[351953151,1738859469040,-1592.44,0.00019589,3]
[351953152,1738859469050,-898.23,0.00019589,3]
[351953153,1738859469060,-1803.78,0.00019589,3]
[351953154,1738859469070,-1173.8,0.00019589,3]
[351953155,1738859469079,-798.24,0.00019589,3]
[351953156,1738859469089,-1904.48,0.00019589,3]
[351953157,1738859469100,-638.5,0.00019589,3]
[351953158,1738859469110,-2776.48,0.00019589,3]
[351953159,1738859469119,-744.29,0.00019589,3]
[351953160,1738859469128,-500.0,0.00019589,3]
[351953161,1738859469137,-2043.7,0.00019589,3]
[351953162,1738859469146,-1021.47,0.00019589,3]
[351953163,1738859469155,-1589.04,0.00019589,3]
[351953164,1738859469165,-500.0,0.00019589,3]
[351953165,1738859469174,-753.25,0.00019589,3]
[351953166,1738859469183,-2003.9,0.00019589,3]
[351953167,1738859469193,-967.67,0.00019589,3]
[351953168,1738859469203,-623.17,0.00019589,3]
[351953169,1738859469212,-871.33,0.00019589,3]
[351953170,1738859469222,-4639.69,0.00019589,3]
[351953171,1738859469231,-500.0,0.00019589,3]
[351953172,1738859469241,-3441.14,0.00019589,3]
[351953173,1738859469250,-665.34,0.00019589,3]
[351953174,1738859469260,-500.0,0.00019589,3]
[351953175,1738859469269,-2365.63,0.00019589,3]
[351953176,1738859469279,-1616.55,0.00019589,3]
[351953177,1738859469288,-636.57818706,0.00019589,3]
[351953178,1738859469297,-1190.26,0.00019589,3]
[351953179,1738859469307,-1884.39,0.00019589,3]
[351953180,1738859469316,-1202.15,0.00019589,2]
[351953181,1738859469325,-2080.1,0.00019589,3]
[351953182,1738859469476,-1721.01,0.00019589,3]
[351953183,1738859469487,-2248.12,0.00019589,3]
[351953184,1738859469498,-500.0,0.00019589,3]
[351953185,1738859469510,-1481.87,0.00019589,3]
[351953186,1738859469520,-957.01,0.00019589,3]
[351953187,1738859469529,-1117.8,0.00019589,3]
[351953188,1738859469539,-2168.42,0.00019589,3]
[351953189,1738859469548,-1392.78,0.00019589,3]
[351953190,1738859469559,-664.01962338,0.0001959,2]
[351953191,1738859469568,-4800.38172167,0.00019591,2]
[351953192,1738859469579,-8146.00470308,0.00019591,2]
[351953193,1738859469590,-664.01962338,0.00019595,2]
[351953194,1738859469601,-150.0,0.00019596,2]
[351953195,1738859469610,-150.0,0.00019597,2]
[351953196,1738859469621,-1039.45584031,0.000196,2]
[351953197,1738859469630,-1053.2187537,0.000196,2]
[351953198,1738859469639,-1025.47505692,0.000196,2]
[351953199,1738859469649,-1053.65793693,0.000196,2]
[351953200,1738859469658,-1134.60806986,0.000196,2]
[351953201,1738859469667,-1059.66666016,0.000196,2]
[351953202,1738859469677,-150.0,0.00019603,2]
[351953203,1738859469687,-390.12499999,0.00019607,2]
[351953204,1738859469697,-1000.0,0.00019609,2]
[351953205,1738859469707,-1538.0,0.00019609,2]
[351953206,1738859469716,-210.78647377,0.00019612,2]
[351953207,1738859469726,-785.3868258,0.00019613,2]
[351953208,1738859469735,-928.6995028,0.00019613,2]
[351953209,1738859469745,-2886.1055327,0.00019613,2]
[351953210,1738859469754,-6254.38859268,0.00019616,2]
[351953211,1738859469764,-4800.38172167,0.00019616,2]
[351953212,1738859469773,-2651.0,0.00019616,3]
[351953213,1738859469783,-295.03731476,0.00019616,5]
[351953214,1738859469793,-390.12499999,0.0001962,2]
[351953215,1738859469803,-210.78647377,0.00019623,2]
[351953216,1738859469812,-3813.95818789,0.00019626,2]
[351953217,1738859469822,-372.96457562,0.00019626,2]
[351953218,1738859469832,-372.96457562,0.00019626,2]
[351953219,1738859469842,-372.96457562,0.00019626,2]
[351953220,1738859469856,-372.96457562,0.00019626,2]
[351953221,1738859469867,-372.96457562,0.00019626,2]
[351953222,1738859469877,-372.96457562,0.00019626,2]
[351953223,1738859469887,-372.96457562,0.00019626,2]
[351953224,1738859469897,-372.96457562,0.00019626,2]
[351953225,1738859469906,-372.96457562,0.00019626,2]
[351953226,1738859469916,-372.96457562,0.00019626,2]
[351953227,1738859469926,-372.96457562,0.00019626,2]
[351953228,1738859469936,-372.96457562,0.00019626,2]
[351953229,1738859469945,-372.96457562,0.00019626,2]
[351953230,1738859469955,-372.96457562,0.00019626,2]
[351953231,1738859469964,-372.96457562,0.00019626,2]
[351953232,1738859469975,-372.96457562,0.00019626,2]
[351953233,1738859469984,-372.96457562,0.00019626,2]
[351953234,1738859469995,-372.96457562,0.00019626,2]
[351953235,1738859470005,-372.96457562,0.00019626,2]
[351953236,1738859470014,-372.96,0.00019626,2]
[351953237,1738859470024,-393.20473964,0.00019626,2]
[351953238,1738859470033,-393.20473964,0.00019626,2]
[351953239,1738859470043,-393.20473964,0.00019626,2]
[351953240,1738859470053,-393.20473964,0.00019626,2]
[351953241,1738859470062,-393.20473964,0.00019626,2]
[351953242,1738859470072,-393.20473964,0.00019626,2]
[351953243,1738859470081,-393.20473964,0.00019626,2]
[351953244,1738859470091,-393.20473964,0.00019626,2]
[351953245,1738859470102,-393.20473964,0.00019626,2]
[351953246,1738859470112,-393.20473964,0.00019626,2]
[351953247,1738859470121,-393.20473964,0.00019626,2]
[351953248,1738859470130,-393.20473964,0.00019626,2]
[351953249,1738859470140,-393.20473964,0.00019626,2]
[351953250,1738859470150,-393.20473964,0.00019626,2]
[351953251,1738859470159,-393.20473964,0.00019626,2]
[351953252,1738859470170,-393.20473964,0.00019626,2]
[351953253,1738859470179,-393.20473964,0.00019626,2]
[351953254,1738859470189,-393.20473964,0.00019626,2]
[351953255,1738859470198,-393.20473964,0.00019626,2]
[351953256,1738859470208,-393.2,0.00019626,2]
[351953257,1738859470218,-509.32968222,0.00019626,2]
[351953258,1738859470227,-509.32968222,0.00019626,2]
[351953259,1738859470237,-509.32968222,0.00019626,2]
[351953260,1738859470246,-509.32968222,0.00019626,2]
[351953261,1738859470256,-509.32968222,0.00019626,2]
[351953262,1738859470265,-509.32968222,0.00019626,2]
[351953263,1738859470274,-509.32968222,0.00019626,2]
[351953264,1738859470283,-509.32968222,0.00019626,2]
[351953265,1738859470292,-509.32968222,0.00019626,2]
[351953266,1738859470302,-509.32968222,0.00019626,2]
[351953267,1738859470311,-509.32968222,0.00019626,2]
[351953268,1738859470321,-509.32968222,0.00019626,2]
[351953269,1738859470331,-509.32968222,0.00019626,2]
[351953270,1738859470340,-509.32968222,0.00019626,2]
[351953271,1738859470353,-509.32968222,0.00019626,2]
[351953272,1738859470362,-509.32968222,0.00019626,2]
[351953273,1738859470372,-509.32968222,0.00019626,2]
[351953274,1738859470381,-509.32968222,0.00019626,2]
[351953275,1738859470391,-509.32968222,0.00019626,2]
[351953276,1738859470400,-509.32,0.00019626,2]
[351953277,1738859470410,-6254.38859268,0.0001963,2]
[351953278,1738859470420,-390.12499999,0.00019635,2]
[351953279,1738859470430,-6254.38859268,0.00019638,2]
[351953280,1738859470439,-3592.610637,0.00019639,2]
[351953281,1738859470449,-594.69498925,0.00019643,2]
[351953282,1738859470458,-4800.38172167,0.00019644,2]
[351953283,1738859470467,-6254.38859268,0.00019644,2]
[351953284,1738859470476,-2651.0,0.00019644,3]
[351953285,1738859470486,-664.01962338,0.00019645,2]
[351953286,1738859470495,-1407.24546414,0.00019646,2]
[351953287,1738859470506,-4800.38172167,0.00019647,2]
[351953288,1738859470517,-8146.00470308,0.00019649,2]
[351953289,1738859470526,-3592.610637,0.0001965,2]
[351953290,1738859470535,-624.16574791,0.00019653,2]
[351953291,1738859470545,-150.0,0.00019656,2]
[351953292,1738859470555,-210.78647377,0.00019657,2]
[351953293,1738859470564,-5910.09132451,0.00019657,2]
[351953294,1738859470573,-150.0,0.00019657,2]
[351953295,1738859470583,-390.12499999,0.0001966,2]
[351953296,1738859470594,-150.0,0.00019662,2]
[351953297,1738859470609,-150.0,0.00019666,2]
[351953298,1738859470619,-2651.0,0.00019671,3]
[351953299,1738859470629,-8146.00470308,0.00019675,2]
[351953300,1738859470638,-5910.09132451,0.00019682,2]
[351953301,1738859470647,-150.0,0.00019683,2]
[351953302,1738859470656,-624.16574791,0.00019684,2]
[351953303,1738859470666,-1407.24546414,0.00019687,2]
[351953304,1738859470676,-5910.09132451,0.00019688,2]
[351953305,1738859470685,-594.69498925,0.00019689,2]
[351953306,1738859470695,-1407.24546414,0.0001969,2]
[351953307,1738859470705,-150.0,0.0001969,2]
[351953308,1738859470714,-1039.45584031,0.00019691,2]
[351953309,1738859470724,-594.69498925,0.00019694,2]
[351953310,1738859470734,-594.69498925,0.00019697,2]
[351953311,1738859470743,-2651.0,0.00019699,3]
[351953312,1738859470753,-295.03731476,0.00019699,5]
[351953313,1738859470762,-150.0,0.00019699,2]
[351953314,1738859470772,-3592.610637,0.000197,2]
[351953315,1738859470781,-150.0,0.000197,2]
[351953316,1738859470791,-150.0,0.00019703,2]
[351953317,1738859470801,-49431.99830263,0.00019708,2]
[351953318,1738859470811,-214.11834828,0.0001971,2]
[351953319,1738859470820,-11975.25,0.00019711,7]
[351953320,1738859470829,-11975.25,0.00019711,7]
[351953321,1738859470838,-150.0,0.00019712,2]
[351953322,1738859470851,-696.5652915,0.00019713,2]
[351953323,1738859470860,-827.9735552,0.00019713,2]
[351953324,1738859470870,-2573.0810142,0.00019713,2]
[351953325,1738859470880,-210.4011469,0.00019713,2]
[351953326,1738859470889,-3177.3040336,0.00019713,2]